bitfinex-derivatives/quotes_ETHF0:USTF0_20241102
["timestamp","ask_amount","ask_price","bid_price","bid_amount"]
[1730560178647,3.74907797,2485.8,2485.7,0.28167]
[1730560180040,3.46741797,2485.8,2485.7,0.28167]
[1730560180449,3.74907797,2485.8,2485.7,0.28167]
[1730560181247,0.28169,2485.6,2485.5,0.4611]
[1730560181448,0.2817,2485.5,2485.4,0.72061]
[1730560181743,3.13674179,2485.5,2485.4,1.25797357]
[1730560182044,3.13674179,2485.5,2485.4,0.72061]
[1730560182450,1.44967369,2485.5,2485.4,0.72061]
[1730560183848,4.93917369,2485.5,2485.4,0.72061]
[1730560184950,1.73137369,2485.5,2485.4,0.28171]
[1730560185252,0.28172,2485.3,2485.2,0.28173]
[1730560185444,1.73139369,2485.3,2485.2,0.81915769]
[1730560185648,1.73139369,2485.3,2485.2,0.28173]
[1730560185853,1.73139369,2485.3,2485.2,0.8191581]
[1730560186247,1.73139369,2485.3,2485.2,0.28173]
[1730560187945,1.44967369,2485.3,2485.1,1.3421]
[1730560188142,1.73140369,2485.3,2485.2,0.28173]
[1730560188557,0.28173,2485.2,2485.1,1.62383]
[1730560188747,0.28173,2485.2,2485.1,2.16116323]
[1730560189054,1.44967369,2485.3,2485.2,0.28173]
[1730560189055,1.73140369,2485.3,2485.2,0.28173]
[1730560189754,7.49470864,2485.4,2485.3,0.28172]
[1730560190155,5.38949369,2485.4,2485.3,0.28172]
[1730560190453,7.49470864,2485.4,2485.3,0.28172]
[1730560190855,4.28690864,2485.4,2485.3,0.28172]
[1730560192657,4.00518864,2485.4,2485.1,1.3421]
[1730560192855,1.44967369,2485.3,2485.2,0.28173]
[1730560195455,0.73202,2485.4,2485.3,0.28172]
[1730560195456,1.44967369,2485.4,2485.3,0.28172]
[1730560195755,1.44967369,2485.4,2485.1,2.04645]
[1730560195756,2.10521495,2485.5,2485.2,0.28173]
[1730560195961,3.83657864,2485.6,2485.5,0.2817]
[1730560196854,3.83657864,2485.6,2485.1,2.04645]
[1730560196855,3.55203356,2485.6,2485.1,1.3421]
[1730560197055,1.44967369,2485.3,2485.2,0.28173]
[1730560197264,1.44967369,2485.3,2485.2,0.81890405]
[1730560197757,1.44967369,2485.3,2485.2,0.28173]
[1730560198351,1.73139369,2485.3,2485.2,0.28173]
[1730560200361,1.44967369,2485.3,2485.2,0.28173]
[1730560200559,1.73139369,2485.3,2485.2,0.28173]
[1730560201561,0.28173,2485.2,2485.1,1.62384]
[1730560201757,1.73140369,2485.2,2485.1,1.70446098]
[1730560202861,7.20507738,2485.2,2485.1,0.53712098]
[1730560203067,9.5542489,2485.2,2484.7,0.8996]
[1730560203269,3.48958,2484.8,2484.7,0.8996]
[1730560203764,4.0525,2484.8,2484.7,1.18139]
[1730560204760,4.33428,2484.8,2484.7,0.8996]
[1730560205259,4.33428,2484.8,2484.7,1.18139]
[1730560205460,4.33428,2484.8,2484.7,0.8996]
[1730560206958,3.91398,2484.8,2484.7,0.8996]
[1730560208162,0.70618,2484.8,2484.7,0.8996]
[1730560208359,1.73144369,2484.9,2484.7,1.18138]
[1730560209569,3.48958,2484.8,2484.7,0.8996]
[1730560209763,3.2078,2484.8,2484.6,0.4242]
[1730560209960,2.16006369,2484.7,2484.6,0.706]
[1730560210161,2.16006369,2484.7,2484.6,0.4242]
[1730560210361,2.16006369,2484.7,2484.6,0.706]
[1730560210562,1.87827369,2484.7,2484.6,0.706]
[1730560212066,1.87827369,2484.7,2484.2,1.60161]
[1730560212067,0.28181,2484.6,2484.2,0.897]
[1730560212266,1.44967369,2484.4,2484.3,0.70113]
[1730560212970,1.44967369,2484.4,2484.3,4.72593]
[1730560213363,1.44967369,2484.4,2484.3,0.70113]
[1730560213871,1.44967369,2484.4,2484.3,4.72593]
[1730560214268,1.44967369,2484.6,2484.5,0.2818]
[1730560214566,1.73147369,2484.6,2484.5,0.2818]
[1730560214762,1.44967369,2484.6,2484.5,0.2818]
[1730560214963,1.73147369,2484.6,2484.5,0.2818]
[1730560215404,1.73147369,2484.6,2484.3,0.4193]
[1730560215405,0.28182,2484.5,2484.4,0.28182]
[1730560215902,1.44967369,2484.6,2484.5,0.28181]
[1730560216698,1.73148369,2484.6,2484.4,0.28181]
[1730560216897,1.44967369,2484.5,2484.4,0.28182]
[1730560217401,0.28183,2484.3,2484.2,1.17884]
[1730560217599,1.44967369,2484.3,2484.2,0.02936709]
[1730560217891,1.73150369,2484.3,2484.2,0.02936709]
[1730560218101,3.08610369,2484.3,2484.2,0.02936709]
[1730560218300,7.11170369,2484.3,2484.2,0.02936709]
[1730560218907,0.28185,2484.2,2483.8,0.28189]
[1730560219124,1.44967369,2483.9,2483.8,0.28189]
[1730560219498,2.16366369,2483.9,2483.7,0.28189]
[1730560219833,1.44967369,2483.8,2483.7,0.28189]
[1730560220392,1.73156369,2483.8,2483.7,0.28189]
[1730560220604,0.2819,2483.7,2483.6,0.28191]
[1730560220796,0.2819,2483.7,2483.5,1.59422]
[1730560220987,3.14276276,2483.6,2483.5,1.59422]
[1730560221774,3.14276276,2483.6,2483.5,0.8864]
[1730560221967,3.14276276,2483.6,2483.3,3.2078]
[1730560222183,0.4223,2483.5,2483.4,0.28194]
[1730560222480,3.6301,2483.5,2483.2,0.8704]
[1730560222676,0.28195,2483.3,2483.2,1.15235]
[1730560222879,3.14276276,2483.4,2483.2,0.8704]
[1730560223083,3.14276276,2483.4,2483.3,0.28195]
[1730560226387,3.14276276,2483.4,2483.2,0.8704]
[1730560226388,3.14276276,2483.6,2483.5,0.28192]
[1730560226584,7.52616276,2483.8,2483.6,0.28191]
[1730560226778,7.24426276,2483.8,2483.2,0.8704]
[1730560226978,7.52615276,2483.8,2483.2,1.57528]
[1730560227181,7.52615276,2483.8,2483.7,0.2819]
[1730560227182,6.35056276,2483.8,2483.7,0.2819]
[1730560227383,6.63246276,2483.8,2483.6,0.28191]
[1730560227876,6.63246276,2483.8,2483.7,0.2819]
[1730560227877,6.35056276,2483.8,2483.7,0.2819]
[1730560228072,6.35056276,2483.8,2483.2,0.8704]
[1730560228287,6.35056276,2483.8,2483.6,0.28191]
[1730560228483,6.35056276,2483.8,2483.7,0.2819]
[1730560229291,6.35056276,2483.8,2483.2,1.57529]
[1730560229492,6.35056276,2483.8,2483.6,0.2819]
[1730560229684,6.35056276,2483.8,2483.2,0.8704]
[1730560229889,3.14276276,2483.5,2483.4,0.28194]
[1730560231598,3.42469276,2483.5,2483.2,0.8704]
[1730560231804,3.42469276,2483.5,2483.3,0.28195]
[1730560232701,0.28196,2483.3,2483.1,0.28197]
[1730560232900,0.4192,2483.2,2483.1,0.28196]
[1730560233094,0.70116,2483.2,2483.1,0.28196]
[1730560233600,0.70116,2483.2,2483.0,0.28198]
[1730560233806,0.4192,2483.2,2483.1,0.28197]
[1730560233997,0.70116,2483.2,2483.1,0.28197]
[1730560234302,0.4192,2483.2,2483.1,0.28197]
[1730560234501,0.70116,2483.2,2483.1,0.28197]
[1730560234694,7.6542,2483.2,2482.5,0.70508]
[1730560234895,7.6542,2483.2,2482.9,0.28199]
[1730560234896,3.14276276,2483.0,2482.9,0.28199]
[1730560235595,3.14276276,2483.0,2482.6,1.3018]
[1730560235596,7.16996276,2483.0,2482.7,0.28202]
[1730560235798,0.9025,2483.1,2482.6,1.3018]
[1730560235799,3.42477276,2482.8,2482.6,1.3018]
[1730560235995,3.14276276,2482.8,2482.7,0.28202]
[1730560236599,0.28202,2482.7,2482.5,0.28204]
[1730560236906,3.60366276,2482.8,2482.3,0.8867]
[1730560237206,3.14276276,2482.5,2482.4,0.28205]
[1730560238604,3.14276276,2482.5,2482.3,0.8867]
[1730560239003,3.14276276,2482.5,2482.4,0.28205]
[1730560239213,3.14276276,2482.8,2482.3,0.8867]
[1730560239398,3.42477276,2482.8,2482.6,0.28202]
[1730560239808,3.14276276,2482.8,2482.7,0.28202]
[1730560240500,3.14276276,2483.0,2482.9,0.28199]
[1730560240703,11.145,2483.1,2483.0,0.28198]
[1730560240907,0.13903093,2483.3,2483.2,0.28196]
[1730560241701,3.14276276,2483.4,2483.3,0.28195]
[1730560243001,3.14276276,2483.4,2483.1,1.2999]
[1730560243197,3.42470276,2483.4,2483.2,0.28196]
[1730560243601,3.14276276,2483.4,2483.3,0.28195]
[1730560244807,3.14276276,2483.4,2483.1,1.2999]
[1730560245007,3.14276276,2483.2,2483.1,1.58186]
[1730560245819,0.28197,2483.1,2483.0,3.2078]
[1730560246109,0.73787,2483.1,2483.0,3.2078]
[1730560246809,7.6909,2483.1,2482.6,0.8636]
[1730560247114,4.02676276,2483.0,2482.9,0.28199]
[1730560247311,4.30874276,2483.0,2482.8,0.282]
[1730560247507,0.28199,2482.9,2482.7,0.28201]
[1730560248412,7.2358,2482.8,2482.3,3.6458]
[1730560248614,3.14276276,2482.4,2482.3,3.90996]
[1730560248816,3.14276276,2482.4,2482.3,0.70216]
[1730560249307,3.42481276,2482.4,2482.3,0.4201]
[1730560249915,3.14276276,2482.4,2482.3,0.70216]
[1730560250301,3.14276276,2482.4,2482.2,0.4574]
[1730560250302,3.14276276,2482.4,2482.2,0.28207]
[1730560251216,0.28207,2482.3,2482.1,4.72228396]
[1730560251417,3.14276276,2482.2,2482.1,4.44020396]
[1730560251610,3.42483276,2482.2,2482.1,4.44020396]
[1730560251807,3.14276276,2482.2,2482.1,4.44020396]
[1730560252011,3.42483276,2482.2,2482.1,4.44020396]
[1730560252312,3.14276276,2482.2,2482.1,4.44020396]
[1730560252612,10.66143276,2482.2,2482.1,4.44020396]
[1730560257216,7.45363276,2482.2,2482.1,4.44020396]
[1730560257419,10.66143276,2482.2,2482.1,4.44020396]
[1730560257815,10.37936276,2482.2,2482.1,4.44020396]
[1730560258017,6.35056276,2482.2,2482.1,4.44020396]
[1730560258517,6.35056276,2482.2,2482.1,4.72228396]
[1730560258723,3.14276276,2482.2,2482.1,4.72228396]
[1730560259424,3.14276276,2482.2,2482.1,4.44020396]
[1730560259615,3.14276276,2482.2,2482.1,4.72228396]
[1730560259817,3.42483276,2482.2,2482.1,4.44020396]
[1730560260621,3.14276276,2482.2,2482.1,4.44020396]
[1730560260828,3.42483276,2482.2,2482.1,4.44020396]
[1730560261909,6.63263276,2482.2,2482.1,4.44020396]
[1730560262414,6.35056276,2482.2,2482.1,4.44020396]
[1730560262618,6.35056276,2482.2,2482.1,4.72228396]
[1730560262816,11.28437206,2482.6,2482.3,0.28206]
[1730560262817,3.14276276,2482.4,2482.3,0.28206]
[1730560263018,3.14276276,2482.6,2482.5,0.28204]
[1730560268925,3.14276276,2482.8,2482.5,4.028]
[1730560269123,3.14276276,2482.8,2482.7,0.28202]
[1730560269520,3.14276276,2482.8,2482.7,0.74232]
[1730560270422,3.14276276,2483.0,2482.7,4.4883]
[1730560270619,3.14276276,2483.0,2482.9,0.28199]
[1730560272329,0.28194,2483.4,2482.9,0.28199]
[1730560272330,0.28194,2483.4,2482.9,4.0272]
[1730560272620,3.2078,2483.5,2482.8,3.91282]
[1730560272621,3.48973,2483.5,2483.3,0.28195]
[1730560273225,3.2078,2483.5,2482.8,3.91282]
[1730560273419,3.2078,2483.5,2483.4,0.28194]
[1730560273721,3.2078,2483.5,2482.9,0.70499]
[1730560273929,3.48973,2483.5,2483.3,0.28194]
[1730560274328,3.2078,2483.5,2482.8,3.91282]
[1730560274528,3.14276276,2483.3,2483.0,0.70496]
[1730560274724,3.14276276,2483.3,2483.2,0.28196]
[1730560274925,3.14276276,2483.5,2483.0,0.70496]
[1730560275119,3.14276276,2483.5,2483.4,0.28194]
[1730560276027,3.42469276,2483.5,2483.3,0.28194]
[1730560276231,4.03156276,2483.5,2483.2,0.885]
[1730560276418,4.03156276,2483.5,2483.4,0.28194]
[1730560277017,4.31349276,2483.5,2483.3,0.28194]
[1730560277828,0.28194,2483.4,2483.2,0.28195]
[1730560278037,3.42471276,2483.3,2483.1,0.28196]
[1730560278334,3.14276276,2483.3,2483.2,0.28196]
[1730560279135,4.03156276,2483.5,2483.2,4.0272]
[1730560279334,3.14276276,2483.5,2483.4,0.28194]
[1730560279531,3.42469276,2483.5,2483.4,0.28194]
[1730560280632,3.14276276,2483.5,2483.4,0.28194]
[1730560284032,3.14276276,2483.5,2483.4,0.73484]
[1730560285338,3.14276276,2483.7,2483.6,0.28191]
[1730560289745,3.14276276,2483.7,2483.4,0.4529]
[1730560289945,3.14276276,2483.7,2483.6,0.28191]
[1730560290242,0.28193,2483.5,2483.3,0.28195]
[1730560290439,0.8779,2483.4,2482.9,4.81338]
[1730560290740,1.15984,2483.4,2483.2,0.28195]
[1730560290948,6.35056276,2483.3,2482.6,3.2078]
[1730560291138,0.28201,2482.8,2482.6,0.28202]
[1730560291741,0.4325,2482.7,2482.6,0.28202]
[1730560292331,3.85728276,2482.7,2482.6,0.28202]
[1730560292540,3.85728276,2482.7,2482.5,0.28204]
[1730560292541,0.28203,2482.6,2482.5,0.28204]
[1730560293345,3.57526276,2482.7,2482.2,4.9687]
[1730560293641,3.14276276,2482.5,2482.4,0.28205]
[1730560293837,3.42480276,2482.5,2482.4,0.28205]
[1730560294038,3.42480276,2482.5,2482.2,4.5461]
[1730560294341,3.42480276,2482.5,2482.3,0.28205]
[1730560294531,3.14276276,2482.5,2482.3,0.28205]
[1730560294736,0.4393,2482.4,2482.1,4.72228396]
[1730560294936,3.42482276,2482.3,2482.1,4.72228396]
[1730560295143,0.28207,2482.2,2482.1,4.44020396]
[1730560296048,3.48987,2482.2,2482.1,4.44020396]
[1730560296952,7.51867,2482.2,2482.1,4.44020396]
[1730560297144,7.95927,2482.2,2482.1,2.35040396]
[1730560297349,7.6772,2482.2,2481.7,3.2078]
[1730560297540,3.14276276,2481.8,2481.7,3.2078]
[1730560297741,3.42488276,2481.8,2481.7,3.2078]
[1730560298043,3.58486276,2481.8,2481.7,3.2078]
[1730560298249,3.86698276,2481.8,2481.7,3.2078]
[1730560299247,7.61446276,2481.8,2481.4,3.2078]
[1730560299547,6.63271276,2481.6,2481.2,0.70678]
[1730560299946,6.63271276,2481.6,2481.3,0.28218]
[1730560300142,6.35056276,2481.6,2481.2,0.4246]
[1730560300445,6.35056276,2481.6,2481.2,0.70678]
[1730560300446,3.14276276,2481.6,2481.2,0.70678]
[1730560300652,0.28216,2481.5,2481.2,0.70678]
[1730560300841,0.28217,2481.4,2481.1,0.28219]
[1730560301043,3.14276276,2481.6,2480.8,1.2972]
[1730560301244,3.14276276,2481.6,2480.8,2.00279]
[1730560301447,0.72934,2481.7,2481.4,0.28216]
[1730560301847,6.35056276,2481.5,2480.4,4.25845231]
[1730560302051,3.14276276,2480.9,2480.6,0.28225]
[1730560302348,6.35056276,2481.1,2480.4,3.2078]
[1730560302542,6.63276276,2481.1,2480.8,0.28223]
[1730560302746,6.63276276,2481.1,2480.7,0.28224]
[1730560303049,0.4574,2481.0,2480.4,3.2078]
[1730560303350,0.4574,2481.0,2480.8,0.28223]
[1730560303551,0.4574,2481.0,2480.7,0.28224]
[1730560303853,0.4574,2481.0,2480.8,0.28223]
[1730560304643,0.4574,2481.0,2480.9,0.28222]
[1730560304845,0.4574,2481.0,2480.4,3.2078]
[1730560305045,0.73961,2481.0,2480.4,3.2078]
[1730560305244,0.4574,2481.0,2480.5,0.28227]
[1730560305442,0.4574,2481.0,2480.4,3.2078]
[1730560305645,0.4574,2481.0,2480.9,0.28222]
[1730560306037,6.63273276,2481.4,2480.9,4.0304]
[1730560306243,6.63273276,2481.4,2481.1,0.28219]
[1730560307054,6.35056276,2481.4,2481.0,0.72661]
[1730560307349,0.28218,2481.3,2481.0,0.72661]
[1730560308039,3.14276276,2481.1,2481.0,0.72661]
[1730560312652,3.14276276,2481.6,2481.4,0.28216]
[1730560312855,3.14276276,2481.6,2481.1,0.4621]
[1730560313152,3.14276276,2481.6,2481.3,0.28217]
[1730560313153,3.42491276,2481.6,2481.3,0.28217]
[1730560313358,3.14276276,2481.4,2481.3,0.28217]
[1730560313545,3.14276276,2481.4,2481.2,0.28218]
[1730560313746,3.42493276,2481.4,2481.1,0.74429]
[1730560313950,0.28218,2481.3,2481.0,3.9344]
[1730560314149,3.14276276,2481.1,2481.0,3.93441]
[1730560316451,3.14276276,2481.3,2481.2,0.28218]
[1730560317460,3.14276276,2481.3,2481.1,0.28219]
[1730560317461,3.42494276,2481.3,2481.1,0.28219]
[1730560317749,3.42495276,2481.2,2481.1,0.28219]
[1730560317951,3.42495276,2481.2,2481.0,3.9344]
[1730560318558,0.2822,2481.1,2481.0,3.9344]
[1730560318945,3.42495276,2481.2,2481.0,3.9344]
[1730560319154,3.14276276,2481.2,2481.0,0.4444]
[1730560319358,3.14276276,2481.2,2480.7,3.49004]
[1730560319560,3.42499276,2480.9,2480.7,3.49004]
[1730560319757,0.4415,2480.8,2480.7,3.49004]
[1730560321355,3.14276276,2481.1,2481.0,0.28221]
[1730560324150,3.14276276,2481.1,2480.7,3.2078]
[1730560324465,3.42499276,2480.8,2480.7,3.2078]
[1730560324652,3.14276276,2480.8,2480.7,3.49004]
[1730560324854,3.14276276,2480.8,2480.7,3.2078]
[1730560325056,10.38176276,2480.8,2480.3,0.4416]
[1730560325359,3.14276276,2480.4,2480.3,0.72389]
[1730560325658,2.43768168,2480.4,2480.3,0.72389]
[1730560326254,2.43768168,2480.4,2480.3,0.28229]
[1730560326757,0.28229,2480.3,2480.2,3.2078]
[1730560327061,0.28229,2480.3,2480.1,0.28231]
[1730560327357,4.0551,2480.5,2479.6,3.2078]
[1730560327358,7.17476276,2480.2,2479.6,3.2078]
[1730560327659,0.28231,2480.1,2479.9,0.28233]
[1730560327857,3.14276276,2480.0,2479.9,0.28233]
[1730560328055,3.42508276,2480.0,2479.8,0.28234]
[1730560328259,3.87148276,2480.0,2479.5,0.4212]
[1730560328453,3.14276276,2479.8,2479.7,0.28235]
[1730560329257,3.14276276,2479.8,2479.5,0.4212]
[1730560329454,3.14276276,2479.8,2479.7,0.28236]
[1730560330552,3.14276276,2479.8,2478.6,1.05065231]
[1730560330553,10.45336276,2479.8,2478.6,1.05065231]
[1730560330761,3.14276276,2479.2,2478.7,0.4212]
[1730560330962,0.28241,2479.3,2478.8,0.28246]
[1730560330963,3.14276276,2478.9,2478.8,0.28246]
[1730560332163,0.4628,2479.1,2478.7,0.4212]
[1730560332164,3.60556276,2479.1,2479.0,0.28244]
[1730560332363,0.4628,2479.1,2479.0,0.28244]
[1730560333856,3.2078,2479.4,2479.1,0.28243]
[1730560334058,3.14276276,2479.3,2478.7,0.4212]
[1730560334254,3.14276276,2479.3,2479.2,0.28241]
[1730560335064,3.56366276,2479.6,2479.3,0.2824]
[1730560335264,3.56366276,2479.6,2479.0,0.8509]
[1730560335565,3.14276276,2479.3,2479.1,0.28242]
[1730560336975,3.14276276,2479.3,2479.2,0.28241]
[1730560337363,3.14276276,2479.3,2479.1,0.28242]
[1730560337760,3.14276276,2479.3,2478.8,0.4623]
[1730560337963,3.14276276,2479.3,2479.2,0.28241]
[1730560339165,3.56366276,2479.6,2479.5,0.28238]
[1730560339471,3.56366276,2479.6,2479.3,0.8863]
[1730560339767,3.56366276,2479.6,2479.5,0.28238]
[1730560340572,3.14276276,2479.6,2479.5,0.28238]
[1730560340958,3.14276276,2479.8,2479.3,0.8863]
[1730560341160,3.14276276,2479.8,2479.7,0.28236]
[1730560342162,0.449,2480.2,2480.1,0.28231]
[1730560343968,0.449,2480.2,2479.8,3.6667]
[1730560343969,0.28232,2480.0,2479.8,3.6667]
[1730560344267,3.42510276,2479.9,2479.8,3.2078]
[1730560344465,3.14276276,2479.9,2479.8,3.49015]
[1730560345465,3.14276276,2479.9,2479.8,3.2078]
[1730560345671,3.14276276,2479.9,2479.8,3.49015]
[1730560346665,0.7313,2480.2,2480.0,0.28232]
[1730560346666,3.14276276,2480.1,2480.0,0.28232]
[1730560349270,3.14276276,2480.3,2479.8,3.2078]
[1730560349469,3.14276276,2480.3,2480.2,0.2823]
[1730560350868,3.14276276,2480.5,2480.2,4.032]
[1730560351075,3.14276276,2480.5,2480.1,3.6422]
[1730560351076,3.14276276,2480.5,2480.4,0.28228]
[1730560351265,3.14276276,2480.8,2480.7,0.28224]
[1730560351464,3.14276276,2481.0,2480.9,0.28222]
[1730560351665,3.58076276,2481.2,2480.7,3.2078]
[1730560351871,3.58076276,2481.2,2481.1,0.2822]
[1730560352167,3.14276276,2481.2,2481.1,0.2822]
[1730560352869,3.14276276,2481.5,2481.0,3.2078]
[1730560353171,3.2078,2481.6,2481.1,0.4566]
[1730560353466,3.2078,2481.6,2481.5,0.28215]
[1730560353672,3.14276276,2481.7,2481.2,0.70548]
[1730560353873,3.14276276,2481.9,2481.3,3.2078]
[1730560354069,3.14276276,2481.9,2481.8,0.28212]
[1730560354272,3.56446276,2482.2,2482.1,0.28208]
[1730560354476,3.14276276,2482.2,2482.1,0.28208]
[1730560354769,3.14276276,2482.2,2481.7,0.4445]
[1730560354770,3.14276276,2482.4,2481.9,3.2078]
[1730560354970,3.14276276,2482.4,2482.3,0.28206]
[1730560355468,3.14276276,2482.9,2482.2,3.2078]
[1730560355674,3.42476276,2482.9,2482.6,0.28202]
[1730560356267,0.28201,2482.8,2482.5,0.28203]
[1730560356765,2.44697005,2483.0,2482.8,0.28201]
[1730560356964,2.44697005,2483.0,2482.3,0.70516]
[1730560356965,1.99867005,2483.0,2482.9,0.28199]
[1730560357371,3.14276276,2483.6,2482.9,7.235]
[1730560357675,0.28194,2483.5,2483.1,0.28197]
[1730560357971,0.28194,2483.5,2482.9,4.1158]
[1730560358166,6.35056276,2483.6,2482.9,4.1158]
[1730560358369,6.63248276,2483.6,2483.2,0.28195]
[1730560358566,6.35056276,2483.6,2482.9,4.1158]
[1730560358969,0.28193,2483.5,2483.1,0.28197]
[1730560359173,3.42470276,2483.4,2483.0,0.28198]
[1730560359365,3.14276276,2483.4,2483.0,0.28198]
[1730560359564,3.14276276,2483.4,2483.1,0.28197]
[1730560359765,3.14276276,2483.4,2482.9,4.1158]
[1730560360168,6.35056276,2483.6,2483.3,0.28195]
[1730560360576,3.2078,2483.6,2483.3,0.28195]
[1730560360771,4.31662473,2483.7,2483.3,0.28194]
[1730560361162,4.59852473,2483.7,2483.3,0.28194]
[1730560361367,4.31662473,2483.7,2482.9,4.1158]
[1730560361571,3.86832473,2483.4,2482.9,3.2078]
[1730560361767,0.28195,2483.3,2482.9,3.2078]
[1730560362278,0.28195,2483.3,2482.9,3.48979]
[1730560363270,0.28196,2483.3,2482.9,3.2078]
[1730560363474,0.28197,2483.2,2482.9,3.2078]
[1730560363976,0.28197,2483.1,2482.9,3.2078]
[1730560365380,3.86832473,2483.4,2482.9,3.2078]
[1730560365578,0.28198,2483.0,2482.9,3.2078]
[1730560365777,3.2078,2483.3,2482.9,3.2078]
[1730560365976,0.28198,2483.0,2482.9,3.2078]
[1730560366787,3.2078,2483.3,2482.9,3.2078]
[1730560367076,0.28192,2483.6,2483.0,0.28198]
[1730560367285,0.28192,2483.6,2483.3,0.28194]
[1730560367482,3.6561,2483.7,2483.2,0.28195]
[1730560367679,0.28194,2483.4,2483.1,0.28196]
[1730560368078,0.28194,2483.4,2483.1,0.28197]
[1730560368584,0.28195,2483.3,2483.0,0.28198]
[1730560368881,0.28194,2483.4,2483.1,0.28197]
[1730560369280,0.28194,2483.4,2483.1,3.48977]
[1730560370477,7.52442473,2483.7,2482.7,3.6423]
[1730560370785,0.282,2482.9,2482.7,3.92431]
[1730560371880,0.28199,2483.0,2482.8,0.28201]
[1730560372482,3.2078,2483.3,2482.7,3.6423]
[1730560372681,0.28197,2483.1,2482.9,0.28199]
[1730560372883,3.2078,2483.6,2482.7,3.6423]
[1730560373078,0.282,2482.9,2482.7,3.92431]
[1730560373282,0.28201,2482.8,2482.7,3.6423]
[1730560373485,0.28201,2482.8,2482.7,3.2078]
[1730560374282,0.8802,2483.0,2482.7,3.2078]
[1730560374283,0.4601,2483.0,2482.7,3.2078]
[1730560374510,0.282,2482.9,2482.7,3.48981]
[1730560374982,3.2078,2483.3,2482.7,3.2078]
[1730560375488,0.28196,2483.2,2483.0,0.28198]
[1730560375680,0.28196,2483.3,2483.0,0.28198]
[1730560375886,0.28195,2483.3,2483.0,0.28198]
[1730560376090,0.28196,2483.2,2483.0,0.28198]
[1730560376287,3.2078,2483.3,2482.8,0.7319]
[1730560376492,0.28199,2483.0,2482.8,0.7319]
[1730560376890,3.2078,2483.3,2482.7,3.2078]
[1730560377090,0.28201,2482.8,2482.7,3.2078]
[1730560378588,3.86832473,2483.1,2482.5,0.28204]
[1730560378890,3.2078,2482.9,2482.4,0.4407]
[1730560379289,3.4898,2482.9,2482.4,0.4407]
[1730560379586,0.28201,2482.8,2482.6,0.28202]
[1730560380289,0.282,2482.9,2482.7,0.28201]
[1730560380689,0.28202,2482.7,2482.5,0.28204]
[1730560380987,0.28202,2482.7,2482.5,0.28203]
[1730560381586,3.2078,2483.2,2482.5,4.73311]
[1730560381891,11.145,2483.4,2483.1,0.28197]
[1730560381892,0.4249,2483.3,2483.1,0.28197]
[1730560382093,0.28199,2483.0,2482.8,0.282]
[1730560382590,3.56880754,2483.3,2482.6,0.435]
[1730560382591,0.28198,2483.1,2482.9,0.28199]
[1730560383795,0.28198,2483.1,2482.6,0.435]
[1730560383990,0.4249,2483.3,2483.1,0.28197]
[1730560384195,0.4249,2483.3,2482.6,8.39876754]
[1730560384396,3.2078,2483.2,2482.6,1.342]
[1730560384595,0.28199,2483.0,2482.8,0.282]
[1730560384895,0.28203,2482.7,2482.5,0.28203]
[1730560385095,3.2078,2482.9,2482.5,0.28203]
[1730560385096,0.28203,2482.6,2482.5,0.28203]
[1730560385290,0.28203,2482.6,2482.4,0.4407]
[1730560385494,0.12864709,2482.8,2482.4,0.72274]
[1730560385999,0.28203,2482.6,2482.5,0.28203]
[1730560386202,0.28204,2482.5,2482.4,0.72275]
[1730560386498,0.28203,2482.6,2482.5,0.28204]
[1730560387089,0.28203,2482.6,2482.4,0.72274]
[1730560387294,0.28203,2482.6,2482.5,0.28204]
[1730560387692,0.28203,2482.6,2482.4,0.72274]
[1730560387898,0.28204,2482.5,2482.4,0.72274]
[1730560388499,0.28203,2482.6,2482.5,0.28204]
[1730560389592,0.28202,2482.7,2482.5,0.28204]
[1730560389793,0.28203,2482.7,2482.5,0.28204]
[1730560390302,0.28203,2482.7,2482.5,0.28203]
[1730560390799,3.33644709,2482.8,2482.4,0.4407]
[1730560391005,0.28203,2482.6,2482.4,0.72275]
[1730560391495,0.28204,2482.5,2482.4,0.4407]
[1730560395304,3.14390754,2482.5,2482.0,0.4495]
[1730560395504,0.28207,2482.3,2482.1,0.28208]
[1730560395690,0.28207,2482.3,2482.0,0.4495]
[1730560395893,0.28207,2482.3,2482.1,0.28208]
[1730560397704,0.28206,2482.4,2482.0,0.4495]
[1730560398007,0.12864709,2482.8,2482.4,0.28205]
[1730560398008,0.28204,2482.6,2482.4,0.28205]
[1730560398201,6.48035463,2482.8,2482.4,0.28205]
[1730560398402,0.28204,2482.5,2482.0,2.20539231]
[1730560398610,6.48035463,2482.8,2482.1,1.05065231]
[1730560398909,0.28202,2482.7,2482.2,2.90077828]
[1730560399215,3.14390754,2483.0,2482.3,2.01432883]
[1730560399396,0.28202,2482.7,2482.6,0.28203]
[1730560399704,0.28202,2482.7,2482.5,0.28204]
[1730560400105,0.28203,2482.6,2482.5,0.28204]
[1730560400509,4.28638754,2483.0,2482.5,0.28204]
[1730560400510,0.28203,2482.7,2482.5,0.28204]
[1730560400699,3.58140754,2483.0,2482.4,0.4371]
[1730560400903,3.48977,2483.1,2483.0,0.28198]
[1730560401405,3.48977,2483.1,2482.9,0.28199]
[1730560401614,3.48977,2483.1,2483.0,0.4577]
[1730560402109,0.28197,2483.1,2483.0,0.4577]
[1730560402510,3.48977,2483.1,2483.0,0.4577]
[1730560402806,0.28203,2482.7,2482.5,0.74084]
[1730560403008,0.4232,2483.0,2482.5,0.4588]
[1730560403305,0.28201,2482.8,2482.6,0.28202]
[1730560405110,0.4232,2483.0,2482.5,0.4588]
[1730560405412,6.35170754,2482.8,2482.5,0.4588]
[1730560405607,0.28202,2482.7,2482.5,0.4588]
[1730560405807,0.28202,2482.7,2482.5,0.74084]
[1730560406106,0.28203,2482.6,2482.5,0.4588]
[1730560406298,0.28203,2482.6,2482.4,0.73975]
[1730560406299,6.35170754,2482.8,2482.4,0.4577]
[1730560406503,0.28204,2482.5,2482.4,0.73975]
[1730560407010,0.28204,2482.5,2482.4,4.76775]